bitfinex/quotes_BTCUSD_20241001
["timestamp","ask_amount","ask_price","bid_price","bid_amount"]
[1727769395459,0.1128884,64135.0,64134.0,0.158923]
[1727769395675,0.18313484,64135.0,64134.0,0.155923]
[1727769395894,0.18313484,64135.0,64134.0,0.157923]
[1727769396156,0.10783484,64135.0,64134.0,0.157923]
[1727769396364,0.10783484,64135.0,64134.0,0.155923]
[1727769396568,0.10783925,64135.0,64134.0,0.155923]
[1727769396805,0.0375884,64135.0,64134.0,0.157923]
[1727769397009,0.10683955,64135.0,64134.0,0.157923]
[1727769397438,0.10583955,64135.0,64134.0,0.157923]
[1727769397652,0.0355884,64135.0,64134.0,0.157923]
[1727769397883,0.0355884,64135.0,64134.0,0.17454812]
[1727769398742,0.0375884,64135.0,64134.0,0.17454812]
[1727769399851,0.0355884,64135.0,64134.0,0.17454812]
[1727769400307,0.0355884,64135.0,64134.0,0.17453568]
[1727769400735,0.0355884,64135.0,64134.0,0.157923]
[1727769400972,0.0355884,64135.0,64134.0,0.17452823]
[1727769402493,0.0315884,64135.0,64134.0,0.17452823]
[1727769402710,0.0355884,64135.0,64134.0,0.17452823]
[1727769403831,0.0355884,64135.0,64134.0,0.157923]
[1727769404082,0.0355884,64135.0,64134.0,0.1745307]
[1727769413861,0.0355884,64135.0,64134.0,0.17452389]
[1727769414275,0.0315884,64135.0,64134.0,0.17452389]
[1727769414482,0.0355884,64135.0,64134.0,0.17452389]
[1727769416907,0.011148,64135.0,64134.0,0.17452389]
[1727769417579,0.002648,64135.0,64134.0,0.44149534]
[1727769417806,0.002648,64135.0,64134.0,0.54149534]
[1727769418497,0.002648,64135.0,64134.0,0.53949534]
[1727769418747,0.002648,64135.0,64134.0,0.54149534]
[1727769418985,0.002648,64135.0,64134.0,0.55834958]
[1727769419224,0.002648,64135.0,64134.0,0.55634958]
[1727769419456,0.003648,64135.0,64134.0,0.56134958]
[1727769419718,0.002648,64135.0,64134.0,0.56134958]
[1727769419968,0.003648,64135.0,64134.0,0.56334958]
[1727769420206,0.003648,64135.0,64134.0,0.52989445]
[1727769420446,0.004648,64135.0,64134.0,0.53189445]
[1727769420679,0.004648,64135.0,64134.0,0.56537775]
[1727769420915,0.004648,64135.0,64134.0,0.56537783]
[1727769421416,0.004648,64135.0,64134.0,0.57969158]
[1727769422591,0.004648,64135.0,64134.0,0.56283615]
[1727769422809,0.004648,64135.0,64134.0,0.5795673]
[1727769424557,0.02808614,64135.0,64134.0,0.5745673]
[1727769424774,0.02908614,64135.0,64134.0,0.5815673]
[1727769425194,0.02808614,64135.0,64134.0,0.5745673]
[1727769425631,0.02908614,64135.0,64134.0,0.5815673]
[1727769429063,0.02908614,64135.0,64134.0,0.56470716]
[1727769429263,0.02908614,64135.0,64134.0,0.56732872]
[1727769429554,0.02908614,64135.0,64134.0,0.58150777]
[1727769430928,0.05080232,64145.0,64144.0,0.155899]
[1727769430929,0.0045,64145.0,64144.0,0.155899]
[1727769431152,0.0085,64145.0,64144.0,0.29040498]
[1727769431381,0.0904,64145.0,64144.0,0.29040498]
[1727769431591,0.0924,64145.0,64144.0,0.29040498]
[1727769432518,0.0924,64145.0,64144.0,0.27380363]
[1727769433586,0.0924,64145.0,64144.0,0.27980363]
[1727769434687,0.11683657,64145.0,64144.0,0.27980363]
[1727769435151,0.11683657,64145.0,64144.0,0.161899]
[1727769435369,0.11683657,64145.0,64144.0,0.27980363]
[1727769436219,0.11848457,64145.0,64144.0,0.27980363]
[1727769437120,0.11448457,64145.0,64144.0,0.27980363]
[1727769437336,0.11848457,64145.0,64144.0,0.27980363]
[1727769437553,0.03658457,64145.0,64144.0,0.27980363]
[1727769439360,0.012148,64145.0,64144.0,0.27980363]
[1727769440021,0.010148,64145.0,64144.0,0.27980363]
[1727769440234,0.012148,64145.0,64144.0,0.27980363]
[1727769451717,0.012148,64145.0,64144.0,0.29637544]
[1727769453440,0.012148,64145.0,64144.0,0.27980363]
[1727769453652,0.012148,64145.0,64144.0,0.29638553]
[1727769455619,0.0365846,64145.0,64144.0,0.29638553]
[1727769457164,0.0365846,64145.0,64144.0,0.27980363]
[1727769457376,0.0365846,64145.0,64144.0,0.29639146]
[1727769460474,0.0365846,64145.0,64144.0,0.29638775]
[1727769460930,0.0365846,64145.0,64144.0,0.27980363]
[1727769461156,0.0365846,64145.0,64144.0,0.29638962]
[1727769461850,0.0365846,64145.0,64144.0,2.55255762]
[1727769463326,0.0345846,64145.0,64144.0,2.55255762]
[1727769463560,0.08336541,64145.0,64144.0,2.55255762]
[1727769464185,0.08336541,64145.0,64144.0,2.53597163]
[1727769464391,0.08336541,64145.0,64144.0,2.55255634]
[1727769464813,0.07936541,64145.0,64144.0,2.55255634]
[1727769465038,0.08336541,64145.0,64144.0,2.55255634]
[1727769468785,0.05892881,64145.0,64144.0,2.55255634]
[1727769469009,0.05897271,64145.0,64144.0,2.55255634]
[1727769469665,0.05697271,64145.0,64144.0,2.55255634]
[1727769470564,0.05897271,64145.0,64144.0,2.55255634]
[1727769470980,0.05897271,64145.0,64144.0,2.53597163]
[1727769471602,0.012148,64145.0,64144.0,2.56913723]
[1727769472900,0.008148,64145.0,64144.0,2.56913723]
[1727769473107,0.012148,64145.0,64144.0,2.56913723]
[1727769473519,0.08238507,64145.0,64144.0,2.56913723]
[1727769473983,0.08241292,64145.0,64144.0,2.56913723]
[1727769474610,0.08041292,64145.0,64144.0,2.56913965]
[1727769475642,0.10484967,64145.0,64144.0,2.56913965]
[1727769476513,0.03458475,64145.0,64144.0,2.56913965]
[1727769477158,0.03458475,64145.0,64144.0,0.31297165]
[1727769477374,0.03658475,64145.0,64144.0,0.31297165]
[1727769477623,0.03458475,64145.0,64144.0,0.31297165]
[1727769478283,0.03458475,64145.0,64144.0,0.29638859]
[1727769478494,0.03458475,64145.0,64144.0,0.31296847]
[1727769478722,0.22509275,64145.0,64144.0,0.31296847]
[1727769480314,0.22709275,64145.0,64144.0,0.31296847]
[1727769480968,0.22709275,64145.0,64144.0,2.56913647]
[1727769481403,0.22709275,64145.0,64144.0,2.55255151]
[1727769481626,0.22709275,64145.0,64144.0,2.55256534]
[1727769482254,0.22707409,64145.0,64144.0,2.55256534]
[1727769487176,0.22707822,64145.0,64144.0,2.55256534]
[1727769487398,0.22507822,64145.0,64144.0,2.55256534]
[1727769487862,0.22107822,64145.0,64144.0,2.55256534]
[1727769488097,0.03458475,64145.0,64144.0,2.55256534]
[1727769490502,0.10487515,64145.0,64144.0,2.55256534]
[1727769490712,0.10487515,64145.0,64144.0,2.53597163]
[1727769490927,0.10487515,64145.0,64144.0,2.55255484]
[1727769491340,0.03458475,64145.0,64144.0,2.55255484]
[1727769494208,0.03458475,64145.0,64144.0,2.55254853]
[1727769494430,0.10487426,64145.0,64144.0,2.55254853]
[1727769496847,0.03458475,64145.0,64144.0,2.55254853]
[1727769497063,0.10487353,64145.0,64144.0,2.55254853]
[1727769497506,0.10487353,64145.0,64144.0,0.29638053]
[1727769500629,0.10487353,64145.0,64144.0,0.27980363]
[1727769500838,0.10487353,64145.0,64144.0,0.29637116]
[1727769501054,0.10087353,64145.0,64144.0,0.29637116]
[1727769501317,0.10487353,64145.0,64144.0,0.29637116]
[1727769501540,0.08043678,64145.0,64144.0,0.29637116]
[1727769501756,0.08043158,64145.0,64144.0,0.29637116]
[1727769502403,0.08043158,64145.0,64144.0,0.27980363]
[1727769502585,0.08043158,64145.0,64144.0,0.29636762]
[1727769503847,0.08043158,64145.0,64144.0,0.27980363]
[1727769504073,0.08043158,64145.0,64144.0,0.2963643]
[1727769504746,0.10486817,64145.0,64144.0,0.2963643]
[1727769506029,0.08043158,64145.0,64144.0,0.2963643]
[1727769507057,0.08043158,64145.0,64144.0,0.29635663]
[1727769509072,0.10486821,64145.0,64144.0,0.29635663]
[1727769510447,0.10486821,64145.0,64144.0,0.27980363]
[1727769510861,0.10486821,64145.0,64144.0,0.29635345]
[1727769511116,0.10686821,64145.0,64144.0,0.29635345]
[1727769511550,0.10686821,64145.0,64144.0,0.17844882]
[1727769511769,0.10686821,64145.0,64144.0,0.29635345]
[1727769513549,0.10686821,64145.0,64144.0,0.27980363]
[1727769513776,0.10686821,64145.0,64144.0,0.29628622]
[1727769514237,0.10686821,64145.0,64144.0,0.006]
[1727769514238,0.11728463,64145.0,64144.0,0.006]
[1727769514460,0.55578923,64145.0,64144.0,0.006]
[1727769514653,0.69635639,64145.0,64144.0,0.006]
[1727769514934,0.55578923,64145.0,64144.0,0.006]
[1727769515407,0.55463614,64145.0,64144.0,0.006]
[1727769515879,0.55463614,64145.0,64144.0,0.004]
[1727769516121,0.55463614,64145.0,64137.0,0.155915]
[1727769516122,0.002,64138.0,64137.0,0.155915]
[1727769516345,0.29745937,64138.0,64137.0,0.155915]
[1727769516576,0.36985551,64138.0,64137.0,0.155915]
[1727769516800,0.46347428,64138.0,64137.0,0.155915]
[1727769517022,0.49241422,64138.0,64137.0,0.27381963]
[1727769517481,0.49241422,64138.0,64137.0,0.27681963]
[1727769517740,0.39879545,64138.0,64137.0,0.27681963]
[1727769518122,0.37435551,64138.0,64137.0,0.27681963]
[1727769518600,0.1849,64138.0,64137.0,0.27681963]
[1727769518811,0.1849,64138.0,64137.0,0.28181963]
[1727769519512,0.25508256,64138.0,64137.0,0.28181963]
[1727769520004,0.16378256,64138.0,64137.0,0.28181963]
[1727769520244,0.0105,64138.0,64137.0,0.28181963]
[1727769520477,0.05728099,64138.0,64137.0,0.28181963]
[1727769521174,0.05727536,64138.0,64137.0,0.28181963]
[1727769521398,0.08171503,64138.0,64137.0,0.28181963]
[1727769522553,0.0105,64138.0,64137.0,0.28181963]
[1727769525643,0.03493955,64138.0,64137.0,0.28181963]
[1727769525872,0.0105,64138.0,64137.0,0.28181963]
[1727769528877,0.03493949,64138.0,64137.0,0.28181963]
[1727769530323,0.0105,64138.0,64137.0,0.28181963]
[1727769531696,0.012148,64138.0,64137.0,0.27681963]
[1727769532388,0.012148,64138.0,64137.0,0.27781963]
[1727769534672,0.03658747,64138.0,64137.0,0.27781963]
[1727769535113,0.03658747,64138.0,64137.0,0.37141963]
[1727769535592,0.012148,64138.0,64137.0,0.37141963]
[1727769536757,0.03658729,64138.0,64137.0,0.37141963]
[1727769539245,0.010148,64138.0,64137.0,0.45341963]
[1727769540692,0.001648,64138.0,64137.0,0.60987743]
[1727769541406,0.001648,64138.0,64137.0,0.60687743]
[1727769541836,0.001648,64138.0,64137.0,0.61387743]
[1727769541837,0.002648,64138.0,64137.0,0.61387743]
[1727769542298,0.001648,64138.0,64137.0,0.60687743]
[1727769542548,0.0260858,64138.0,64137.0,0.60687743]
[1727769542763,0.0260858,64138.0,64137.0,0.60587743]
[1727769542987,0.0270858,64138.0,64137.0,0.61387743]
[1727769543200,0.0270858,64138.0,64137.0,0.60587743]
[1727769543201,0.0260858,64138.0,64137.0,0.60587743]
[1727769543617,0.0260858,64138.0,64137.0,0.61487743]
[1727769543618,0.0270858,64138.0,64137.0,0.61487743]
[1727769543830,0.0310858,64138.0,64137.0,0.61487743]
[1727769544040,0.0270858,64138.0,64137.0,0.61487743]
[1727769544254,0.0270858,64138.0,64137.0,0.62587743]
[1727769544693,0.0270858,64138.0,64137.0,0.61487743]
[1727769545169,0.0270858,64138.0,64137.0,0.62487743]
[1727769546485,0.002648,64138.0,64137.0,0.62487743]
[1727769548701,0.002648,64138.0,64137.0,0.72487743]
[1727769553915,0.02708438,64138.0,64137.0,0.72487743]
[1727769554153,0.002648,64138.0,64137.0,0.72487743]
[1727769557088,0.02708457,64138.0,64137.0,0.72487743]
[1727769559165,0.001648,64145.0,64137.0,0.72487743]
[1727769559166,0.001648,64145.0,64144.0,0.255899]
[1727769559412,0.001648,64145.0,64144.0,0.70896143]
[1727769560604,0.001648,64145.0,64144.0,0.71296143]
[1727769560839,0.002648,64145.0,64144.0,0.72196143]
[1727769561076,0.002648,64145.0,64144.0,0.70896143]
[1727769561319,0.002648,64145.0,64144.0,0.71996143]
[1727769561546,0.004648,64145.0,64144.0,0.73196143]
[1727769562294,0.004648,64145.0,64144.0,0.74654559]
[1727769562501,0.02908263,64145.0,64144.0,0.74654559]
[1727769562930,0.005648,64152.0,64151.0,0.155882]
[1727769562931,0.001648,64152.0,64151.0,0.155882]
[1727769563167,0.001648,64152.0,64151.0,0.3684039]
[1727769563407,0.001648,64152.0,64151.0,0.36528663]
[1727769563624,0.001648,64152.0,64151.0,0.60154443]
[1727769564061,0.001648,64152.0,64151.0,0.60554443]
[1727769564545,0.001648,64152.0,64151.0,0.60854443]
[1727769565242,0.005648,64152.0,64151.0,0.60854443]
[1727769565462,0.007648,64152.0,64151.0,0.52874443]
[1727769565926,0.03208137,64152.0,64151.0,0.52874443]
[1727769566350,0.02808137,64152.0,64151.0,0.52874443]
[1727769566566,0.03008137,64152.0,64151.0,0.52874443]
[1727769566988,0.02608137,64152.0,64151.0,0.52874443]
[1727769567434,0.03008137,64152.0,64151.0,0.52874443]
[1727769568337,0.007648,64152.0,64151.0,0.52874443]
[1727769568571,0.001648,64152.0,64151.0,0.52874443]
[1727769569493,0.001648,64152.0,64151.0,0.53498943]
[1727769569714,0.005648,64152.0,64151.0,0.53498943]
[1727769569923,0.001648,64152.0,64151.0,0.53498943]
[1727769570127,0.005648,64152.0,64151.0,0.53498943]
[1727769570349,0.001648,64152.0,64151.0,0.53498943]
[1727769573560,0.003648,64152.0,64151.0,0.53498943]
[1727769573782,0.001648,64152.0,64151.0,0.53498943]
[1727769577613,0.02608111,64152.0,64151.0,0.53498943]
[1727769580467,0.001648,64152.0,64151.0,0.53498943]
[1727769583625,0.02608019,64152.0,64151.0,0.53498943]
[1727769588903,0.001648,64152.0,64151.0,0.53498943]
[1727769591089,0.001648,64152.0,64151.0,0.55128198]
[1727769592217,0.02608054,64152.0,64151.0,0.55128198]
[1727769592628,0.02608054,64152.0,64151.0,0.55128607]
[1727769593292,0.001648,64152.0,64151.0,0.55128607]
[1727769595884,0.001648,64152.0,64151.0,0.55107132]
[1727769596596,0.001648,64152.0,64151.0,0.65107132]
[1727769597251,0.001648,64152.0,64151.0,0.63498943]
[1727769598565,0.001648,64152.0,64151.0,0.63098943]
[1727769598773,0.001648,64152.0,64151.0,0.62798943]
[1727769598989,0.001648,64152.0,64151.0,0.63598943]
[1727769599221,0.001648,64152.0,64151.0,0.64298943]
[1727769599425,0.001648,64152.0,64151.0,0.63498943]
[1727769599651,0.001648,64152.0,64151.0,0.64598943]
[1727769601237,0.001648,64152.0,64151.0,0.65524547]
[1727769601948,0.001648,64152.0,64151.0,0.72938943]
[1727769602360,0.001648,64152.0,64151.0,0.74564358]
[1727769603484,0.002824,64161.0,64160.0,0.15586]
[1727769603694,0.002824,64161.0,64160.0,0.29001878]
[1727769604382,0.002824,64161.0,64160.0,0.27376463]
[1727769604791,0.000824,64161.0,64160.0,0.27376463]
[1727769605656,0.000824,64161.0,64160.0,0.27576463]
[1727769606719,0.000824,64161.0,64160.0,0.43533935]
[1727769606931,0.000824,64161.0,64160.0,0.43222243]
[1727769608004,0.000824,64161.0,64160.0,0.64819016]
[1727769608433,0.000824,64161.0,64160.0,0.64620407]
[1727769608642,0.000824,64161.0,64160.0,0.65120407]
[1727769608890,0.000824,64161.0,64160.0,0.64720407]
[1727769609096,0.000824,64161.0,64160.0,0.65220407]
[1727769609320,0.000824,64161.0,64160.0,0.63602243]
[1727769609538,0.000824,64161.0,64160.0,0.74402243]
[1727769609755,0.23760293,64168.0,64167.0,0.155843]
[1727769609756,0.000825,64168.0,64167.0,0.155843]
[1727769609986,0.000825,64168.0,64167.0,0.63172177]
[1727769610222,0.23677793,64178.0,64169.0,0.311673]
[1727769610443,0.23677793,64178.0,64177.0,0.37372363]
[1727769610701,0.23677793,64178.0,64177.0,0.53018143]
[1727769610909,0.00165,64180.0,64179.0,0.155814]
[1727769611123,0.00165,64180.0,64179.0,0.15892996]
[1727769611568,0.00165,64180.0,64177.0,0.2564578]
[1727769611789,0.00165,64180.0,64173.0,0.311653]
[1727769611790,0.002,64177.0,64176.0,0.1]
[1727769612008,0.002,64177.0,64176.0,0.4122788]
[1727769612685,0.002,64177.0,64176.0,0.53018343]
[1727769612921,0.002,64177.0,64176.0,0.53318343]
[1727769613422,0.002,64177.0,64176.0,0.53818343]
[1727769614354,0.02642384,64177.0,64176.0,0.53818343]
[1727769614588,0.02642384,64177.0,64176.0,0.53518343]
[1727769614814,0.02642384,64177.0,64176.0,0.53718343]
[1727769615292,0.02642384,64177.0,64176.0,0.257821]
[1727769615521,0.02642384,64177.0,64176.0,0.12390463]
[1727769615522,0.03092384,64177.0,64176.0,0.12390463]
[1727769615744,0.20822384,64177.0,64176.0,0.006]
[1727769615968,0.002,64169.0,64168.0,0.11790463]
[1727769616188,0.002,64166.0,64165.0,0.2050099]
[1727769616412,0.002,64166.0,64165.0,0.155848]
[1727769616625,0.02642818,64166.0,64165.0,0.155848]
[1727769617107,0.02442818,64166.0,64165.0,0.255848]
[1727769617323,0.02442818,64166.0,64165.0,0.37375263]
[1727769618488,0.02442818,64166.0,64165.0,0.37475263]
[1727769618704,0.02642818,64166.0,64165.0,0.38475263]
[1727769619174,0.02442818,64166.0,64165.0,0.37375263]
[1727769621003,0.02642818,64166.0,64165.0,0.37375263]
[1727769622439,0.02442818,64166.0,64165.0,0.37375263]
[1727769622671,0.02442818,64166.0,64165.0,0.37475263]
[1727769623386,0.02642818,64166.0,64165.0,0.256848]
[1727769623617,0.02642818,64166.0,64165.0,0.37475263]
[1727769624340,0.02642818,64166.0,64165.0,0.11890463]
[1727769624341,0.03092818,64166.0,64165.0,0.11890463]
[1727769624589,0.03092818,64166.0,64165.0,0.27475263]
[1727769624830,0.03092818,64166.0,64165.0,0.001]
[1727769624831,0.03492818,64166.0,64165.0,0.001]
[1727769625556,0.13452818,64166.0,64165.0,0.001]
[1727769625788,0.1933,64166.0,64165.0,0.001]
[1727769627024,0.1933,64166.0,64165.0,0.156848]
[1727769627247,0.1933,64166.0,64165.0,0.001]
[1727769627464,0.23995465,64166.0,64165.0,0.001]
[1727769628543,0.23995465,64166.0,64165.0,0.156848]
[1727769628757,0.26438469,64166.0,64165.0,0.158496]
[1727769628975,0.21773004,64166.0,64165.0,0.158496]
[1727769629193,0.21773004,64166.0,64165.0,0.157796]
[1727769629855,0.1933,64166.0,64165.0,0.157796]
[1727769631184,0.1933,64166.0,64165.0,0.001948]
[1727769631398,0.23997416,64166.0,64165.0,0.001948]
[1727769631853,0.1933,64166.0,64165.0,0.001948]
[1727769632082,0.1933,64166.0,64165.0,0.157796]
[1727769632361,0.1933,64166.0,64165.0,0.001948]
[1727769633048,0.21772986,64166.0,64165.0,0.001948]
[1727769635787,0.37357486,64166.0,64165.0,0.001948]
[1727769636001,0.28774632,64166.0,64165.0,0.001948]
[1727769636833,0.28774883,64166.0,64165.0,0.001948]
[1727769637065,0.21772986,64166.0,64165.0,0.001948]
[1727769637316,0.41485557,64166.0,64165.0,0.001948]
[1727769637772,0.6886052,64166.0,64165.0,0.001948]
[1727769637991,0.78196382,64166.0,64165.0,0.001948]
[1727769638209,0.66405919,64166.0,64165.0,0.001948]
[1727769638447,0.57070057,64166.0,64165.0,0.001948]
[1727769638691,0.66406053,64166.0,64165.0,0.001948]
[1727769638900,0.66406053,64166.0,64165.0,0.001648]
[1727769646505,0.66391094,64166.0,64165.0,0.001648]
[1727769650591,0.5705641,64166.0,64165.0,0.001648]
[1727769652421,0.004,64161.0,64160.0,0.23677793]
[1727769652658,0.006,64161.0,64160.0,0.23677793]
[1727769652871,0.006,64161.0,64156.0,0.155869]
[1727769652872,0.002,64157.0,64156.0,0.155869]
[1727769653335,0.04666426,64159.0,64153.0,0.59803843]
[1727769653336,0.0065,64154.0,64153.0,0.155875]
[1727769653599,0.0105,64154.0,64153.0,0.155875]
[1727769653804,0.13836426,64159.0,64144.0,0.0495204]
[1727769653805,0.166379,64152.0,64146.0,0.00271483]
[1727769654058,0.14886488,64152.0,64147.0,0.23677793]
[1727769654304,0.161889,64148.0,64147.0,0.23677793]
[1727769654505,0.161889,64148.0,64146.0,0.00271483]
[1727769654506,0.002,64147.0,64146.0,0.006248]
[1727769654738,0.006,64147.0,64146.0,0.006248]
[1727769655186,0.002,64146.0,64145.0,0.000824]
[1727769655428,0.006,64146.0,64145.0,0.15672]
[1727769656524,0.006,64146.0,64145.0,0.16372]
[1727769656994,0.0105,64146.0,64145.0,0.007824]
[1727769657254,0.03493656,64146.0,64145.0,0.007824]
[1727769657533,0.19083056,64146.0,64145.0,0.007824]
[1727769657765,0.03493656,64146.0,64145.0,0.007824]
[1727769657993,0.0815844,64146.0,64145.0,0.007824]
[1727769658441,0.0815844,64146.0,64145.0,0.003824]
[1727769658670,0.0825844,64146.0,64145.0,0.003824]
[1727769659174,0.166394,64146.0,64145.0,0.003824]
[1727769659411,0.43718968,64146.0,64145.0,0.000824]
[1727769659646,0.63817565,64146.0,64145.0,0.000824]
[1727769659862,0.54487997,64146.0,64145.0,0.000824]
[1727769660108,0.54087997,64146.0,64145.0,0.000824]
[1727769660343,0.54587997,64146.0,64145.0,0.001824]
[1727769660596,0.65749958,64146.0,64145.0,0.000824]
[1727769661023,0.65549958,64146.0,64145.0,0.000824]
[1727769661254,0.65749958,64146.0,64145.0,0.000824]
[1727769661687,0.53887997,64146.0,64145.0,0.000824]
[1727769661915,0.65552004,64146.0,64145.0,0.000824]
[1727769662142,0.65752004,64146.0,64145.0,0.000824]
[1727769662602,0.54587997,64146.0,64145.0,0.001824]
[1727769662818,0.54087997,64146.0,64145.0,0.000824]
[1727769663156,0.54587997,64146.0,64145.0,0.001824]
[1727769663562,0.96197366,64146.0,64145.0,0.001824]
[1727769663774,0.84537937,64146.0,64145.0,0.001824]
[1727769663986,0.84737937,64146.0,64145.0,0.001824]
[1727769664460,0.70353153,64146.0,64145.0,0.001824]
[1727769668173,0.70153153,64146.0,64145.0,0.001824]
[1727769668390,0.81805236,64146.0,64145.0,0.001824]
[1727769668848,0.70153153,64146.0,64145.0,0.001824]
[1727769669072,0.70149034,64146.0,64145.0,0.001824]
[1727769669530,0.8180051,64146.0,64145.0,0.001824]
[1727769670682,0.70149034,64146.0,64145.0,0.001824]
[1727769672247,0.60289034,64146.0,64145.0,0.001824]
[1727769672693,0.69608543,64146.0,64145.0,0.001824]
[1727769674694,0.60289034,64146.0,64145.0,0.001824]
[1727769675167,0.0873879,64146.0,64145.0,0.001824]
[1727769675421,0.0175,64146.0,64145.0,0.15772]
[1727769677886,0.0175,64146.0,64145.0,0.001824]
[1727769680127,0.0175,64146.0,64145.0,0.27562463]
[1727769681457,0.0175,64146.0,64145.0,0.15772]
[1727769681916,0.0175,64146.0,64145.0,0.27562463]
[1727769682791,0.0175,64146.0,64145.0,0.15772]
[1727769684970,0.0175,64146.0,64145.0,0.27562463]
[1727769686790,0.0175,64146.0,64145.0,0.26562463]
[1727769687040,0.0125,64146.0,64145.0,0.26562463]
[1727769687724,0.0135,64146.0,64145.0,0.26562463]
[1727769688184,0.0155,64146.0,64145.0,0.26562463]
[1727769688635,0.0115,64146.0,64145.0,0.26727263]
[1727769688849,0.0115,64146.0,64145.0,0.26827263]
[1727769688850,0.03793632,64146.0,64145.0,0.26827263]
[1727769689069,0.0105,64146.0,64145.0,0.26827263]
[1727769689286,0.03493638,64146.0,64145.0,0.26827263]
[1727769689751,0.0105,64146.0,64145.0,0.26827263]
[1727769691277,0.03493631,64146.0,64145.0,0.26827263]
[1727769691514,0.02443631,64146.0,64145.0,0.44247263]
[1727769691759,0.03043631,64146.0,64145.0,0.44247263]
[1727769692482,0.006,64146.0,64145.0,0.44247263]
[1727769692698,0.006,64146.0,64145.0,0.242568]
[1727769694066,0.03043567,64146.0,64145.0,0.242568]
[1727769694957,0.03043567,64146.0,64145.0,0.36047263]
[1727769696599,0.006,64146.0,64145.0,0.36047263]
[1727769698188,0.03043549,64146.0,64145.0,0.36047263]
[1727769699752,0.03043549,64146.0,64145.0,0.44117263]
[1727769700650,0.02643549,64146.0,64145.0,0.44117263]
[1727769700882,0.02443549,64146.0,64145.0,0.44117263]
[1727769701629,0.006,64147.0,64145.0,0.44117263]
[1727769701630,0.006,64147.0,64146.0,0.155894]
[1727769701861,0.006,64147.0,64146.0,0.251594]
[1727769703070,0.007,64147.0,64146.0,0.251594]
[1727769703518,0.005,64147.0,64146.0,0.251594]
[1727769705137,0.001,64147.0,64146.0,0.4111694]
[1727769705359,0.001,64147.0,64146.0,0.4898518]
[1727769706254,0.02443489,64151.0,64150.0,0.155884]
[1727769706479,0.02443489,64151.0,64150.0,0.37318863]
[1727769706935,0.03043489,64151.0,64150.0,0.37318863]
[1727769707199,0.02843489,64151.0,64150.0,0.37318863]
[1727769707427,0.02443489,64151.0,64150.0,0.37318863]
[1727769707886,0.02843489,64151.0,64150.0,0.37318863]
[1727769708340,0.03043489,64151.0,64150.0,0.37318863]
[1727769708562,0.02843489,64151.0,64150.0,0.37318863]
[1727769709328,0.006,64151.0,64150.0,0.37818863]
[1727769710478,0.004,64151.0,64150.0,0.37818863]
[1727769712489,0.02843351,64151.0,64150.0,0.37818863]
[1727769714063,0.03043351,64151.0,64150.0,0.37818863]
[1727769715633,0.03125751,64151.0,64150.0,0.40118863]
[1727769718327,0.02925751,64151.0,64150.0,0.40118863]
[1727769721550,0.07596469,64151.0,64150.0,0.40118863]
[1727769721805,0.07796469,64151.0,64150.0,0.40118863]
[1727769722018,0.07596469,64151.0,64150.0,0.40118863]
[1727769722530,0.07796469,64151.0,64150.0,0.40118863]
[1727769723018,0.07596469,64151.0,64150.0,0.40118863]
[1727769723264,0.05153118,64151.0,64150.0,0.40118863]
[1727769723486,0.004824,64151.0,64150.0,0.40118863]
[1727769723722,0.05153118,64151.0,64150.0,0.40118863]
[1727769724185,0.05153118,64151.0,64150.0,0.55764643]
[1727769725137,0.05353118,64151.0,64150.0,0.55764643]
[1727769726114,0.05153118,64151.0,64150.0,0.55764643]
[1727769726367,0.07596481,64151.0,64150.0,0.55764643]
[1727769727285,0.07196481,64151.0,64150.0,0.55764643]
[1727769727502,0.07596481,64151.0,64150.0,0.55764643]
[1727769729062,0.02925763,64151.0,64150.0,0.55764643]
[1727769729518,0.02525763,64151.0,64150.0,0.55764643]
[1727769729732,0.02925763,64151.0,64150.0,0.55764643]
[1727769729956,0.02525763,64151.0,64150.0,0.97342436]
[1727769730207,0.02525763,64151.0,64150.0,0.73664643]
[1727769730448,0.04670718,64164.0,64159.0,0.0968]
[1727769730695,0.30766271,64165.0,64154.0,0.11840463]
[1727769730696,0.23760193,64165.0,64164.0,0.37645463]
[1727769730935,0.23760193,64165.0,64164.0,0.63291243]
[1727769731154,0.000824,64165.0,64164.0,0.63291243]
[1727769733004,0.000824,64165.0,64164.0,0.64391243]
[1727769733477,0.000824,64165.0,64164.0,0.64691243]
[1727769733928,0.000824,64165.0,64164.0,0.66091243]
[1727769737126,0.02525149,64165.0,64164.0,0.66091243]
[1727769737779,0.02525149,64165.0,64164.0,0.75091243]
[1727769738235,0.02525149,64165.0,64164.0,0.6330078]
[1727769738485,0.02525149,64165.0,64164.0,0.75091243]
[1727769738919,0.02525149,64165.0,64164.0,0.6330078]
[1727769739163,0.02525149,64165.0,64164.0,0.4633078]
[1727769739404,0.000824,64165.0,64164.0,0.28385]
[1727769739643,0.000824,64165.0,64164.0,0.18385]
[1727769739644,0.006824,64165.0,64164.0,0.18385]
[1727769740102,0.006824,64165.0,64164.0,0.15585]
[1727769740329,0.006824,64165.0,64164.0,0.16785]
[1727769740540,0.006824,64165.0,64164.0,0.17885]
[1727769740759,0.006824,64165.0,64164.0,0.16785]
[1727769741230,0.006824,64165.0,64164.0,0.17385]
[1727769741646,0.006824,64165.0,64164.0,0.16185]
[1727769742314,0.006824,64165.0,64164.0,0.16285]
[1727769742772,0.006824,64165.0,64164.0,0.17085]
[1727769743002,0.006824,64165.0,64164.0,0.16385]
[1727769743227,0.006824,64165.0,64164.0,0.17285]
[1727769743686,0.03125295,64165.0,64164.0,0.17285]
[1727769744136,0.006824,64165.0,64164.0,0.17285]
[1727769746306,0.004824,64165.0,64164.0,0.17285]
[1727769747242,0.02925253,64165.0,64164.0,0.17285]
[1727769747523,0.02525253,64165.0,64164.0,0.33242463]
[1727769747759,0.02525253,64165.0,64164.0,0.5286078]
[1727769748222,0.02525253,64165.0,64164.0,0.5538608]
[1727769748699,0.02525253,64165.0,64164.0,0.6538608]
[1727769748928,0.000824,64165.0,64164.0,0.6538608]
[1727769749417,0.000824,64165.0,64164.0,2.9088608]
[1727769749902,0.000824,64165.0,64164.0,2.9008608]
[1727769750362,0.000824,64165.0,64164.0,2.9148608]
[1727769751043,0.000824,64165.0,64164.0,2.9058608]
[1727769751288,0.000824,64165.0,64164.0,2.9198608]
[1727769753207,0.000824,64165.0,64164.0,2.9203608]
[1727769761115,0.0252489,64166.0,64165.0,0.39725263]
[1727769761349,0.0252489,64166.0,64165.0,0.72081043]
[1727769761790,0.000824,64166.0,64165.0,0.72081043]